fUSD/lending_fUSD_20260628
["ID","MTS","AMOUNT","RATE_DAILY","PERIOD"]
[426559931,1782592248000,-661.7,0.00033776,2]
[426559985,1782592248000,-1109.08,0.00034544,60]
[426559958,1782592248000,-282.0,0.00034193,2]
[426559954,1782592248000,-958.89915844,0.00034096,2]
[426559963,1782592248000,-150.0,0.00034384,120]
[426559959,1782592248000,-500.0,0.00034246,14]
[426559964,1782592248000,-1074.80797981,0.00034399,30]
[426559962,1782592248000,-860.37214658,0.000343,2]
[426559961,1782592248000,-568.21869675,0.000343,2]
[426559966,1782592248000,-1270.01,0.00034399,7]
[426559969,1782592248000,-299417.82454712,0.000344,14]
[426559970,1782592248000,-262.63,0.000344,14]
[426559968,1782592248000,-500.0,0.00034399,7]
[426559977,1782592248000,-10000.0,0.000345,30]
[426559956,1782592248000,-958.89915844,0.0003417,2]
[426559976,1782592248000,-10000.0,0.000345,30]
[426559973,1782592248000,-1500.0,0.000344,7]
[426559974,1782592248000,-958.89915844,0.00034429,2]
[426559975,1782592248000,-10000.0,0.000345,30]
[426559967,1782592248000,-1270.01,0.00034399,7]
[426559979,1782592248000,-5105.0,0.000345,30]
[426559978,1782592248000,-10000.0,0.000345,30]
[426559980,1782592248000,-5618.74,0.000345,30]
[426559981,1782592248000,-246.0,0.00034513,7]
[426559984,1782592248000,-547.38,0.00034544,60]
[426559983,1782592248000,-985.76,0.00034544,60]
[426559982,1782592248000,-150.0,0.00034521,10]
[426559923,1782592248000,-160.0,0.00033636,30]
[426559971,1782592248000,-337.05,0.000344,14]
[426559960,1782592248000,-505.0,0.00034273,2]
[426559972,1782592248000,-170.46,0.000344,14]
[426559955,1782592248000,-958.89915844,0.00034118,2]
[426559957,1782592248000,-2000.0,0.00034173,7]
[426559927,1782592248000,-239.0,0.00033637,30]
[426559922,1782592248000,-500.0,0.00033599,7]
[426559921,1782592248000,-300.0,0.0003355,2]
[426559932,1782592248000,-150.0,0.00033784,2]
[426559935,1782592248000,-150.0,0.00033784,2]
[426559939,1782592248000,-196.79872,0.0003396,49]
[426559942,1782592248000,-229.68103113,0.00034,2]
[426559936,1782592248000,-341.68,0.0003379,30]
[426559938,1782592248000,-356.14,0.000339,120]
[426559934,1782592248000,-150.0,0.00033784,2]
[426559941,1782592248000,-4057.10182715,0.00033989,2]
[426559937,1782592248000,-818.82331669,0.00033873,2]
[426559940,1782592248000,-5554.43514228,0.00033966,2]
[426559926,1782592248000,-153.0,0.00033637,30]
[426559965,1782592248000,-341.68,0.00034399,30]
[426559933,1782592248000,-150.0,0.00033784,2]
[426559953,1782592248000,-341.68,0.00034094,30]
[426559950,1782592248000,-958.89915844,0.00034044,2]
[426559947,1782592248000,-185.25,0.0003402,2]
[426559948,1782592248000,-571.1,0.0003402,2]
[426559951,1782592248000,-196.79873,0.0003406,50]
[426559952,1782592248000,-185.0,0.00034079,2]
[426559944,1782592248000,-151.0,0.0003402,2]
[426559946,1782592248000,-573.78,0.0003402,2]
[426559945,1782592248000,-573.78,0.0003402,2]
[426559943,1782592248000,-573.78,0.0003402,2]
[426559949,1782592248000,-573.45,0.0003402,2]
[426560019,1782592249000,-167.00110126,0.000349,120]
[426560017,1782592249000,-183.6166862,0.000349,120]
[426560021,1782592249000,-2236.00160813,0.000349,2]
[426560015,1782592249000,-7932.0,0.00034888,10]
[426560016,1782592249000,-463.37245212,0.000349,120]
[426560025,1782592249000,-1503.65085823,0.000349,2]
[426560024,1782592249000,-515.90549202,0.000349,2]
[426560026,1782592249000,-225.52881582,0.0003499,2]
[426560018,1782592249000,-199.83944223,0.000349,120]
[426560023,1782592249000,-724.98881643,0.000349,2]
[426560028,1782592249000,-1074.80797981,0.00034999,30]
[426560020,1782592249000,-237.3,0.000349,120]
[426560038,1782592249000,-500.0,0.00034999,7]
[426560032,1782592249000,-1270.01,0.00034999,7]
[426560029,1782592249000,-1270.01,0.00034999,7]
[426560031,1782592249000,-1270.01,0.00034999,7]
[426560030,1782592249000,-1270.01,0.00034999,7]
[426560036,1782592249000,-1270.10493128,0.00034999,7]
[426560035,1782592249000,-1270.01,0.00034999,7]
[426560037,1782592249000,-500.0,0.00034999,7]
[426560034,1782592249000,-1270.01,0.00034999,7]
[426560033,1782592249000,-1270.01,0.00034999,7]
[426560044,1782592249000,-500.0,0.00035,5]
[426560049,1782592249000,-200.59593501,0.00035,7]
[426560039,1782592249000,-448.77648232,0.00034999,7]
[426560043,1782592249000,-1000.0,0.00035,2]
[426560027,1782592249000,-1074.80797981,0.00034999,30]
[426560022,1782592249000,-500.0,0.000349,12]
[426560047,1782592249000,-541.43211448,0.00035,5]
[426560009,1782592249000,-568.21869675,0.00034804,2]
[426559987,1782592249000,-2600.0,0.000346,12]
[426559988,1782592249000,-154.0,0.00034636,30]
[426559986,1782592249000,-9044.93,0.00034544,60]
[426559989,1782592249000,-180.0,0.00034636,30]
[426559993,1782592249000,-225.52881582,0.0003467,2]
[426559990,1782592249000,-153.0,0.00034637,30]
[426559999,1782592249000,-500.0,0.00034679,7]
[426559998,1782592249000,-1270.01,0.00034679,7]
[426559991,1782592249000,-239.0,0.00034637,30]
[426559995,1782592249000,-1270.01,0.00034679,7]
[426559992,1782592249000,-168.0,0.00034637,30]
[426559997,1782592249000,-1270.01,0.00034679,7]
[426559996,1782592249000,-1270.01,0.00034679,7]
[426559994,1782592249000,-1270.01,0.00034679,7]
[426560000,1782592249000,-500.0,0.00034679,7]
[426560003,1782592249000,-500.0,0.00034679,7]
[426560011,1782592249000,-505.0,0.00034811,2]
[426560004,1782592249000,-1182216.11692091,0.0003468,30]
[426560001,1782592249000,-500.0,0.00034679,7]
[426560002,1782592249000,-500.0,0.00034679,7]
[426560012,1782592249000,-958.89915844,0.00034837,2]
[426560013,1782592249000,-500.0,0.00034879,7]
[426560005,1782592249000,-500.0,0.000347,12]
[426560008,1782592249000,-500.0,0.000348,12]
[426560010,1782592249000,-860.37214657,0.00034804,2]
[426560006,1782592249000,-43499.84372481,0.000347,20]
[426560007,1782592249000,-341.68,0.00034703,30]
[426560014,1782592249000,-38223.64334528,0.0003488,120]
[426560042,1782592249000,-11363.64685352,0.00035,30]
[426560102,1782592249000,-150.07702708,0.00035484,2]
[426560041,1782592249000,-10044.71087174,0.00035,30]
[426560073,1782592249000,-194.36,0.000351,7]
[426560075,1782592249000,-200.9,0.000353,14]
[426560083,1782592249000,-341.68,0.00035312,30]
[426560082,1782592249000,-818.82331669,0.00035308,2]
[426560079,1782592249000,-236.63513949,0.000353,30]
[426560081,1782592249000,-568.21869675,0.00035307,2]
[426560076,1782592249000,-4579.33464151,0.000353,30]
[426560085,1782592249000,-5865259.32756059,0.000354,14]
[426560087,1782592249000,-168.1,0.00035408,30]
[426560086,1782592249000,-192.39,0.00035407,30]
[426560089,1782592249000,-170.0,0.0003541,7]
[426560096,1782592249000,-702.12,0.00035412,30]
[426560080,1782592249000,-299.14255431,0.000353,30]
[426560088,1782592249000,-224.1,0.00035408,30]
[426560090,1782592249000,-180.33,0.00035411,2]
[426560091,1782592249000,-180.37,0.00035411,2]
[426560095,1782592249000,-922.65,0.00035412,30]
[426560094,1782592249000,-608.86,0.00035412,30]
[426560093,1782592249000,-922.66,0.00035412,30]
[426560098,1782592249000,-100000.0,0.00035455,90]
[426560097,1782592249000,-592.8,0.00035412,30]
[426560099,1782592249000,-100000.0,0.00035455,60]
[426560101,1782592249000,-284.02,0.00035471,2]
[426560100,1782592249000,-177.26,0.0003546,69]
[426560103,1782592249000,-300.0,0.000355,30]
[426560045,1782592249000,-500.0,0.00035,5]
[426560092,1782592249000,-512.46250046,0.00035411,60]
[426560077,1782592249000,-4579.3346415,0.000353,30]
[426560104,1782592249000,-643.9989,0.000355,60]
[426560074,1782592249000,-697.99112283,0.00035299,2]
[426560078,1782592249000,-4579.3346415,0.000353,30]
[426560048,1782592249000,-62741.15952073,0.00035,120]
[426560050,1782592249000,-200.59593501,0.00035,7]
[426560046,1782592249000,-500.0,0.00035,5]
[426560052,1782592249000,-1512.1982,0.00035,2]
[426560053,1782592249000,-293.2114411,0.00035,120]
[426560054,1782592249000,-1500.0,0.00035,2]
[426560051,1782592249000,-1500.0,0.00035,2]
[426560056,1782592249000,-388.98550907,0.00035,2]
[426560055,1782592249000,-1500.0,0.00035,2]
[426560061,1782592249000,-150.0,0.00035,2]
[426560059,1782592249000,-252.66811975,0.00035,60]
[426560057,1782592249000,-156.30840754,0.00035,120]
[426560040,1782592249000,-310.48566945,0.00035,60]
[426560060,1782592249000,-2500.00000001,0.00035,20]
[426560084,1782592249000,-505.0,0.00035349,3]
[426560071,1782592249000,-177.26,0.0003503,30]
[426560069,1782592249000,-3250.0,0.00035,30]
[426560072,1782592249000,-958.89915844,0.00035063,2]
[426560058,1782592249000,-186.82983972,0.00035,120]
[426560066,1782592249000,-35404.26994962,0.00035,120]
[426560068,1782592249000,-8271.2654797,0.00035,30]
[426560067,1782592249000,-3000000.0,0.00035,30]
[426560070,1782592249000,-341.68,0.00035008,30]
[426560064,1782592249000,-7909.32500513,0.00035,30]
[426560063,1782592249000,-2761488.0,0.00035,30]
[426560062,1782592249000,-371992.1551264,0.00035,2]
[426560065,1782592249000,-8738.56358873,0.00035,30]
[426560141,1782592250000,-3000.0,0.00035616,2]
[426560145,1782592250000,-3000.0,0.00035616,2]
[426560142,1782592250000,-3000.0,0.00035616,2]
[426560144,1782592250000,-3000.0,0.00035616,2]
[426560134,1782592250000,-3000.0,0.00035616,2]
[426560151,1782592250000,-3000.0,0.00035616,2]
[426560150,1782592250000,-3000.0,0.00035616,2]
[426560140,1782592250000,-3000.0,0.00035616,2]
[426560133,1782592250000,-3000.0,0.00035616,2]
[426560135,1782592250000,-3000.0,0.00035616,2]
[426560139,1782592250000,-3000.0,0.00035616,2]
[426560147,1782592250000,-3000.0,0.00035616,2]
[426560152,1782592250000,-3000.0,0.00035616,2]
[426560146,1782592250000,-3000.0,0.00035616,2]
[426560149,1782592250000,-3000.0,0.00035616,2]
[426560143,1782592250000,-3000.0,0.00035616,2]
[426560154,1782592250000,-3000.0,0.00035616,2]
[426560153,1782592250000,-3000.0,0.00035616,2]
[426560155,1782592250000,-3000.0,0.00035616,2]
[426560156,1782592250000,-3000.0,0.00035616,2]
[426560163,1782592250000,-3000.0,0.00035616,2]
[426560164,1782592250000,-3000.0,0.00035616,2]
[426560160,1782592250000,-3000.0,0.00035616,2]
[426560159,1782592250000,-3000.0,0.00035616,2]
[426560129,1782592250000,-500.0,0.00035616,14]
[426560148,1782592250000,-3000.0,0.00035616,2]
[426560131,1782592250000,-3000.0,0.00035616,2]
[426560119,1782592250000,-2000.0,0.000356,120]
[426560128,1782592250000,-18238.12941983,0.00035616,10]
[426560162,1782592250000,-3000.0,0.00035616,2]
[426560105,1782592250000,-1944.96,0.000355,30]
[426560106,1782592250000,-1944.96,0.000355,120]
[426560109,1782592250000,-150.79,0.000355,30]
[426560112,1782592250000,-189.36,0.00035577,2]
[426560110,1782592250000,-150.0,0.0003555,7]
[426560108,1782592250000,-194.36,0.000355,7]
[426560111,1782592250000,-943.37,0.00035568,2]
[426560115,1782592250000,-25000.0,0.0003559,10]
[426560118,1782592250000,-5800.0,0.00035599,2]
[426560117,1782592250000,-25000.0,0.00035598,10]
[426560123,1782592250000,-150.0,0.00035616,60]
[426560125,1782592250000,-17187.66858136,0.00035616,10]
[426560120,1782592250000,-25000.0,0.00035607,10]
[426560124,1782592250000,-341.68,0.00035616,30]
[426560121,1782592250000,-5800.0,0.00035608,2]
[426560113,1782592250000,-25000.0,0.00035581,10]
[426560116,1782592250000,-5800.0,0.00035591,2]
[426560122,1782592250000,-171612.8749923,0.0003561,2]
[426560126,1782592250000,-11839.42649668,0.00035616,10]
[426560137,1782592250000,-3000.0,0.00035616,2]
[426560136,1782592250000,-3000.0,0.00035616,2]
[426560138,1782592250000,-3000.0,0.00035616,2]
[426560132,1782592250000,-3000.0,0.00035616,2]
[426560130,1782592250000,-25000.0,0.00035616,10]
[426560127,1782592250000,-5800.0,0.00035616,2]
[426560114,1782592250000,-5800.0,0.00035582,2]
[426560157,1782592250000,-3000.0,0.00035616,2]
[426560107,1782592250000,-1944.96,0.000355,60]
[426560161,1782592250000,-3000.0,0.00035616,2]
[426560194,1782592250000,-1000.0,0.00035616,10]
[426560198,1782592250000,-1000.0,0.00035616,10]
[426560202,1782592250000,-1000.0,0.00035616,10]
[426560199,1782592250000,-1000.0,0.00035616,10]
[426560200,1782592250000,-1000.0,0.00035616,10]
[426560196,1782592250000,-1000.0,0.00035616,10]
[426560201,1782592250000,-1000.0,0.00035616,10]
[426560205,1782592250000,-1000.0,0.00035616,10]
[426560204,1782592250000,-1000.0,0.00035616,10]
[426560214,1782592250000,-1000.0,0.00035616,10]
[426560207,1782592250000,-1000.0,0.00035616,10]
[426560206,1782592250000,-1000.0,0.00035616,10]
[426560197,1782592250000,-1000.0,0.00035616,10]
[426560208,1782592250000,-1000.0,0.00035616,10]
[426560210,1782592250000,-1000.0,0.00035616,10]
[426560211,1782592250000,-1000.0,0.00035616,10]
[426560209,1782592250000,-1000.0,0.00035616,10]
[426560213,1782592250000,-1000.0,0.00035616,10]
[426560216,1782592250000,-1000.0,0.00035616,10]
[426560218,1782592250000,-1000.0,0.00035616,10]
[426560215,1782592250000,-1000.0,0.00035616,10]
[426560217,1782592250000,-1000.0,0.00035616,10]
[426560219,1782592250000,-1000.0,0.00035616,10]
[426560221,1782592250000,-1000.0,0.00035616,10]
[426560220,1782592250000,-1000.0,0.00035616,10]
[426560158,1782592250000,-3000.0,0.00035616,2]
[426560212,1782592250000,-1000.0,0.00035616,10]
[426560195,1782592250000,-1000.0,0.00035616,10]
[426560203,1782592250000,-1000.0,0.00035616,10]
[426560193,1782592250000,-1000.0,0.00035616,10]
[426560192,1782592250000,-1000.0,0.00035616,10]
[426560165,1782592250000,-3000.0,0.00035616,2]
[426560177,1782592250000,-3000.0,0.00035616,2]
[426560176,1782592250000,-3000.0,0.00035616,2]
[426560169,1782592250000,-3000.0,0.00035616,2]
[426560167,1782592250000,-3000.0,0.00035616,2]
[426560168,1782592250000,-3000.0,0.00035616,2]
[426560170,1782592250000,-3000.0,0.00035616,2]
[426560175,1782592250000,-3000.0,0.00035616,2]
[426560174,1782592250000,-3000.0,0.00035616,2]
[426560171,1782592250000,-3000.0,0.00035616,2]
[426560172,1782592250000,-3000.0,0.00035616,2]
[426560173,1782592250000,-3000.0,0.00035616,2]
[426560178,1782592250000,-3000.0,0.00035616,2]
[426560166,1782592250000,-3000.0,0.00035616,2]
[426560189,1782592250000,-1000.0,0.00035616,10]
[426560183,1782592250000,-1653.5409419,0.00035616,2]
[426560181,1782592250000,-3000.0,0.00035616,2]
[426560184,1782592250000,-1000.0,0.00035616,10]
[426560182,1782592250000,-3000.0,0.00035616,2]
[426560186,1782592250000,-1000.0,0.00035616,10]
[426560187,1782592250000,-1000.0,0.00035616,10]
[426560179,1782592250000,-3000.0,0.00035616,2]
[426560188,1782592250000,-1000.0,0.00035616,10]
[426560180,1782592250000,-3000.0,0.00035616,2]
[426560191,1782592250000,-1000.0,0.00035616,10]
[426560190,1782592250000,-1000.0,0.00035616,10]
[426560185,1782592250000,-1000.0,0.00035616,10]
[426560258,1782592251000,-702.12,0.00035618,7]
[426560259,1782592251000,-592.8,0.00035618,7]
[426560252,1782592251000,-277.484612,0.00035616,30]
[426560274,1782592251000,-643.09039053,0.00035859,30]
[426560260,1782592251000,-180.33,0.00035658,7]
[426560261,1782592251000,-180.37,0.00035658,7]
[426560254,1782592251000,-277.484602,0.00035616,30]
[426560253,1782592251000,-277.484612,0.00035616,30]
[426560262,1782592251000,-86999.56,0.000357,21]
[426560256,1782592251000,-608.86,0.00035618,7]
[426560255,1782592251000,-922.66,0.00035618,7]
[426560275,1782592251000,-505.0,0.00035887,4]
[426560257,1782592251000,-922.65,0.00035618,7]
[426560263,1782592251000,-312803.2377,0.00035718,30]
[426560270,1782592251000,-592.8,0.00035825,2]
[426560265,1782592251000,-760.3246323,0.00035809,2]
[426560267,1782592251000,-608.86,0.00035825,2]
[426560266,1782592251000,-922.66,0.00035825,2]
[426560268,1782592251000,-922.65,0.00035825,2]
[426560273,1782592251000,-150.0,0.00035859,30]
[426560272,1782592251000,-949.57961956,0.00035859,30]
[426560269,1782592251000,-702.12,0.00035825,2]
[426560271,1782592251000,-150.0,0.00035859,30]
[426560276,1782592251000,-370.0,0.00035894,7]
[426560278,1782592251000,-177.26,0.000359,98]
[426560277,1782592251000,-237.3,0.000359,120]
[426560279,1782592251000,-194.36,0.000359,7]
[426560264,1782592251000,-989.33,0.000358,10]
[426560247,1782592251000,-277.484612,0.00035616,30]
[426560226,1782592251000,-1000.0,0.00035616,10]
[426560249,1782592251000,-277.484612,0.00035616,30]
[426560280,1782592251000,-150.79,0.000359,30]
[426560227,1782592251000,-1000.0,0.00035616,10]
[426560228,1782592251000,-1000.0,0.00035616,10]
[426560222,1782592251000,-1000.0,0.00035616,10]
[426560223,1782592251000,-1000.0,0.00035616,10]
[426560224,1782592251000,-1000.0,0.00035616,10]
[426560225,1782592251000,-1000.0,0.00035616,10]
[426560229,1782592251000,-1000.0,0.00035616,10]
[426560234,1782592251000,-192.45,0.00035616,2]
[426560230,1782592251000,-1000.0,0.00035616,10]
[426560231,1782592251000,-1000.0,0.00035616,10]
[426560233,1782592251000,-1000.0,0.00035616,10]
[426560232,1782592251000,-1000.0,0.00035616,10]
[426560235,1782592251000,-277.484612,0.00035616,30]
[426560236,1782592251000,-277.484612,0.00035616,30]
[426560238,1782592251000,-277.484612,0.00035616,30]
[426560239,1782592251000,-277.484612,0.00035616,30]
[426560237,1782592251000,-277.484612,0.00035616,30]
[426560241,1782592251000,-277.484612,0.00035616,30]
[426560251,1782592251000,-277.484612,0.00035616,30]
[426560240,1782592251000,-277.484612,0.00035616,30]
[426560242,1782592251000,-277.484612,0.00035616,30]
[426560244,1782592251000,-277.484612,0.00035616,30]
[426560243,1782592251000,-277.484612,0.00035616,30]
[426560245,1782592251000,-277.484612,0.00035616,30]
[426560246,1782592251000,-277.484612,0.00035616,30]
[426560250,1782592251000,-277.484612,0.00035616,30]
[426560248,1782592251000,-277.484612,0.00035616,30]
[426560284,1782592251000,-27574.85873708,0.00035987,2]
[426560288,1782592251000,-1025.49,0.00036,120]
[426560340,1782592251000,-702.12,0.00036445,2]
[426560313,1782592251000,-589.09123834,0.00036178,120]
[426560316,1782592251000,-5618.74,0.000362,30]
[426560315,1782592251000,-151.88345685,0.00036188,14]
[426560317,1782592251000,-702.12,0.00036239,7]
[426560318,1782592251000,-608.86,0.00036239,7]
[426560322,1782592251000,-622.89303209,0.00036247,120]
[426560319,1782592251000,-922.65,0.00036239,7]
[426560323,1782592251000,-276.45999989,0.00036247,120]
[426560320,1782592251000,-592.8,0.00036239,7]
[426560321,1782592251000,-10000.00000099,0.00036243,3]
[426560326,1782592251000,-158.9484228,0.000363,120]
[426560331,1782592251000,-177.26,0.0003634,114]
[426560328,1782592251000,-194.36,0.000363,7]
[426560324,1782592251000,-283.445,0.00036247,120]
[426560333,1782592251000,-1176.29989783,0.00036364,2]
[426560327,1782592251000,-200.0,0.000363,14]
[426560334,1782592251000,-150.0,0.00036381,120]
[426560332,1782592251000,-151.88345685,0.00036351,18]
[426560330,1782592251000,-300.0,0.00036309,5]
[426560335,1782592251000,-262.19,0.00036384,40]
[426560336,1782592251000,-1176.29989783,0.00036387,2]
[426560338,1782592251000,-300.0,0.0003644,30]
[426560339,1782592251000,-608.86,0.00036445,2]
[426560341,1782592251000,-592.8,0.00036445,2]
[426560343,1782592251000,-76370.52648887,0.000365,120]
[426560342,1782592251000,-702.12,0.00036446,2]
[426560282,1782592251000,-180.37,0.00035906,30]
[426560344,1782592251000,-251.56,0.000365,120]
[426560337,1782592251000,-505.0,0.00036425,4]
[426560314,1782592251000,-379.64794082,0.0003618,30]
[426560329,1782592251000,-625.0,0.00036302,120]
[426560311,1782592251000,-260.73500001,0.00036178,120]
[426560281,1782592251000,-180.33,0.00035906,30]
[426560325,1782592251000,-178842.54414643,0.0003629,11]
[426560285,1782592251000,-49852.17465088,0.0003599,120]
[426560287,1782592251000,-100967.60871085,0.00036,30]
[426560283,1782592251000,-150.0,0.00035982,2]
[426560290,1782592251000,-5618.74,0.00036,30]
[426560291,1782592251000,-5618.74,0.00036,30]
[426560289,1782592251000,-5618.74,0.00036,30]
[426560292,1782592251000,-152.0,0.00036,120]
[426560293,1782592251000,-10000.0,0.00036,30]
[426560298,1782592251000,-399.999999,0.00036,120]
[426560295,1782592251000,-6000.0,0.00036,120]
[426560297,1782592251000,-2262.37,0.00036,36]
[426560299,1782592251000,-922.66,0.00036032,30]
[426560286,1782592251000,-150672.37728006,0.00036,120]
[426560296,1782592251000,-199.83944223,0.00036,120]
[426560294,1782592251000,-463.37245212,0.00036,120]
[426560310,1782592251000,-151.88345696,0.00036164,10]
[426560312,1782592251000,-249.04012469,0.00036178,120]
[426560305,1782592251000,-1176.29989783,0.00036103,2]
[426560303,1782592251000,-592.8,0.00036032,30]
[426560308,1782592251000,-180.39,0.00036154,2]
[426560309,1782592251000,-150.0,0.00036159,20]
[426560307,1782592251000,-180.36,0.00036154,2]
[426560306,1782592251000,-760.3246323,0.00036141,2]
[426560301,1782592251000,-922.65,0.00036032,30]
[426560302,1782592251000,-702.12,0.00036032,30]
[426560304,1782592251000,-150.79,0.000361,30]
[426560300,1782592251000,-608.86,0.00036032,30]
[426560386,1782592252000,-284418.04461973,0.000368,7]
[426560383,1782592252000,-2000.0,0.000368,120]
[426560380,1782592252000,-177.26,0.0003678,120]
[426560384,1782592252000,-1645.76434366,0.000368,2]
[426560381,1782592252000,-6399.470859,0.00036791,30]
[426560390,1782592252000,-922.66,0.00036859,7]
[426560385,1782592252000,-402.2,0.000368,31]
[426560377,1782592252000,-25966.96928108,0.0003677,120]
[426560375,1782592252000,-274.79456975,0.00036743,30]
[426560376,1782592252000,-2606.00672825,0.00036757,7]
[426560379,1782592252000,-1281.88,0.00036778,120]
[426560382,1782592252000,-151.88345685,0.00036794,22]
[426560388,1782592252000,-170.0,0.00036826,7]
[426560395,1782592252000,-100000.0,0.000369,7]
[426560397,1782592252000,-1000.0,0.000369,120]
[426560392,1782592252000,-191.90555369,0.00036867,30]
[426560389,1782592252000,-150.0,0.00036834,60]
[426560394,1782592252000,-400.0,0.000369,120]
[426560396,1782592252000,-30179.72179884,0.000369,2]
[426560387,1782592252000,-904.0,0.000368,13]
[426560393,1782592252000,-50000.0,0.0003688,5]
[426560399,1782592252000,-150.79,0.000369,30]
[426560398,1782592252000,-82921.20173004,0.000369,30]
[426560402,1782592252000,-156.997906,0.00036919,113]
[426560401,1782592252000,-302.11232225,0.0003691,30]
[426560378,1782592252000,-1166.86,0.00036778,120]
[426560391,1782592252000,-702.12,0.00036859,7]
[426560373,1782592252000,-300.0,0.0003671,30]
[426560406,1782592252000,-233.26,0.00036973,120]
[426560370,1782592252000,-194.36,0.000367,7]
[426560351,1782592252000,-714.93,0.00036528,30]
[426560349,1782592252000,-300.0,0.0003651,30]
[426560345,1782592252000,-538484.156179,0.000365,7]
[426560347,1782592252000,-10000.0,0.000365,120]
[426560350,1782592252000,-150.0,0.00036528,2]
[426560348,1782592252000,-28870.00017027,0.000365,60]
[426560346,1782592252000,-670079.19854104,0.000365,30]
[426560352,1782592252000,-10576.0,0.00036565,10]
[426560355,1782592252000,-152.0,0.00036607,4]
[426560353,1782592252000,-4602.28497777,0.000366,120]
[426560358,1782592252000,-608.86,0.00036652,30]
[426560359,1782592252000,-592.8,0.00036652,30]
[426560361,1782592252000,-307.27,0.00036663,120]
[426560363,1782592252000,-494.93,0.00036663,120]
[426560364,1782592252000,-2000.0,0.00036663,120]
[426560362,1782592252000,-406.94,0.00036663,120]
[426560356,1782592252000,-161.369185,0.00036618,110]
[426560354,1782592252000,-249.47485956,0.000366,20]
[426560357,1782592252000,-300.89188656,0.0003664,30]
[426560360,1782592252000,-609.88,0.00036653,30]
[426560366,1782592252000,-2000.0,0.00036663,120]
[426560367,1782592252000,-1656.25,0.00036663,120]
[426560369,1782592252000,-53270.89725965,0.000367,120]
[426560374,1782592252000,-2000.0,0.00036712,120]
[426560371,1782592252000,-500.0,0.000367,13]
[426560365,1782592252000,-1266.02,0.00036663,120]
[426560368,1782592252000,-760.3246323,0.00036691,2]
[426560372,1782592252000,-881.37790566,0.00036704,30]
[426560400,1782592252000,-464.55612727,0.000369,30]
[426560412,1782592252000,-158.86018745,0.00036997,2]
[426560405,1782592252000,-21749.89,0.00036973,22]
[426560439,1782592252000,-337.737412,0.00037,7]
[426560435,1782592252000,-463.37245212,0.00037,120]
[426560438,1782592252000,-331.737412,0.00037,7]
[426560436,1782592252000,-403.737427,0.00037,7]
[426560442,1782592252000,-337.737412,0.00037,7]
[426560445,1782592252000,-337.737412,0.00037,7]
[426560441,1782592252000,-331.737412,0.00037,7]
[426560446,1782592252000,-334.737412,0.00037,7]
[426560440,1782592252000,-334.737412,0.00037,7]
[426560447,1782592252000,-331.737412,0.00037,7]
[426560443,1782592252000,-334.737412,0.00037,7]
[426560449,1782592252000,-334.737412,0.00037,7]
[426560437,1782592252000,-334.737412,0.00037,7]
[426560460,1782592252000,-334.737412,0.00037,14]
[426560448,1782592252000,-337.737412,0.00037,7]
[426560451,1782592252000,-337.737412,0.00037,7]
[426560459,1782592252000,-403.737426,0.00037,14]
[426560450,1782592252000,-331.737412,0.00037,7]
[426560452,1782592252000,-334.737412,0.00037,7]
[426560454,1782592252000,-337.737412,0.00037,7]